[Event "Early-Titled-Tuesday-Blitz-February-27-2024"]
[Site "Chess.com"]
[Date "2024.02.27"]
[Round "7"]
[White "Juicy_Fork"]
[Black "BilicVladimir"]
[Result "0-1"]
[WhiteElo "2527"]
[BlackElo "2687"]
[TimeControl "180+1"]
[EndTime "9:17:31 PST"]
[Termination "BilicVladimir won on time"]

1. e4 {[%clk 0:03:00.9]} 1... e6 {[%clk 0:03:00]} 2. d4 {[%clk 0:03:00.8]} 2...
d5 {[%clk 0:03:00.2]} 3. Nc3 {[%clk 0:03:01.1]} 3... Nf6 {[%clk 0:02:59.8]} 4.
Bg5 {[%clk 0:03:00.9]} 4... Bb4 {[%clk 0:02:58.9]} 5. e5 {[%clk 0:03:01.2]} 5...
h6 {[%clk 0:02:58.3]} 6. Bd2 {[%clk 0:02:52]} 6... Bxc3 {[%clk 0:02:56.1]} 7.
bxc3 {[%clk 0:02:50.4]} 7... Ne4 {[%clk 0:02:56]} 8. Qg4 {[%clk 0:02:48.1]} 8...
Kf8 {[%clk 0:02:55.2]} 9. Bd3 {[%clk 0:02:47.7]} 9... Nxd2 {[%clk 0:02:54.2]}
10. Kxd2 {[%clk 0:02:48.6]} 10... c5 {[%clk 0:02:54.7]} 11. Nf3 {[%clk
0:02:47.4]} 11... cxd4 {[%clk 0:02:51.4]} 12. cxd4 {[%clk 0:02:44.3]} 12... Nc6
{[%clk 0:02:40.4]} 13. Rhd1 {[%clk 0:02:27.1]} 13... Bd7 {[%clk 0:02:38]} 14.
Ke2 {[%clk 0:02:26.5]} 14... Na5 {[%clk 0:02:36.8]} 15. Kf1 {[%clk 0:02:26.6]}
15... a6 {[%clk 0:02:36.9]} 16. Kg1 {[%clk 0:02:25.9]} 16... Rc8 {[%clk
0:02:33.4]} 17. Nh4 {[%clk 0:02:21.2]} 17... Qg5 {[%clk 0:02:30]} 18. Qh3 {[%clk
0:02:04.8]} 18... Nc4 {[%clk 0:02:27.3]} 19. Kh1 {[%clk 0:02:02.9]} 19... Nb2
{[%clk 0:02:20.7]} 20. f4 {[%clk 0:02:01.1]} 20... Nxd1 {[%clk 0:02:09]} 21.
Rxd1 {[%clk 0:01:54.8]} 21... Qe7 {[%clk 0:02:08]} 22. f5 {[%clk 0:01:50.4]}
22... exf5 {[%clk 0:02:07.2]} 23. Bxf5 {[%clk 0:01:50.2]} 23... Bxf5 {[%clk
0:01:58.1]} 24. Nxf5 {[%clk 0:01:46.2]} 24... Qe6 {[%clk 0:01:57.5]} 25. Qa3+
{[%clk 0:01:46]} 25... Kg8 {[%clk 0:01:49.7]} 26. Ne7+ {[%clk 0:01:35.2]} 26...
Kh7 {[%clk 0:01:49.8]} 27. Qd3+ {[%clk 0:01:31.6]} 27... g6 {[%clk 0:01:45.3]}
28. Nxc8 {[%clk 0:01:30.7]} 28... Rxc8 {[%clk 0:01:45]} 29. Rf1 {[%clk
0:01:30.9]} 29... Kg7 {[%clk 0:01:44.1]} 30. c3 {[%clk 0:01:30.7]} 30... Rc6
{[%clk 0:01:36.4]} 31. h3 {[%clk 0:01:28]} 31... Qe7 {[%clk 0:01:35.5]} 32. Qf3
{[%clk 0:01:26]} 32... Qd7 {[%clk 0:01:31.1]} 33. Qe3 {[%clk 0:01:05.3]} 33...
b5 {[%clk 0:01:29.6]} 34. a3 {[%clk 0:01:04]} 34... Qe7 {[%clk 0:01:25.5]} 35.
Qf3 {[%clk 0:01:01.4]} 35... Qe6 {[%clk 0:01:11]} 36. Qg3 {[%clk 0:00:41.3]}
36... Qe7 {[%clk 0:01:05.3]} 37. Qf3 {[%clk 0:00:35.8]} 37... Qe6 {[%clk
0:01:03.1]} 38. Rf2 {[%clk 0:00:29]} 38... Rc4 {[%clk 0:00:58.4]} 39. Qg3 {[%clk
0:00:14.3]} 39... Rc6 {[%clk 0:00:55.5]} 40. Rf6 {[%clk 0:00:13.4]} 40... Qe8
{[%clk 0:00:55.1]} 41. Qf4 {[%clk 0:00:09.4]} 41... Re6 {[%clk 0:00:51.3]} 42.
Qf3 {[%clk 0:00:09.3]} 42... Qd7 {[%clk 0:00:48.2]} 43. Kh2 {[%clk 0:00:06.9]}
43... a5 {[%clk 0:00:42.5]} 44. Qf4 {[%clk 0:00:06.8]} 44... Qe7 {[%clk
0:00:39.2]} 45. Qf3 {[%clk 0:00:02.9]} 45... Rxf6 {[%clk 0:00:31.2]} 46. exf6+
{[%clk 0:00:03.8]} 46... Qxf6 {[%clk 0:00:30.7]} 47. Qxd5 {[%clk 0:00:04.4]}
47... Qf4+ {[%clk 0:00:30.8]} 48. g3 {[%clk 0:00:03.9]} 48... Qd2+ {[%clk
0:00:30.6]} 49. Qg2 {[%clk 0:00:03.1]} 49... Qxc3 {[%clk 0:00:29.8]} 50. d5
{[%clk 0:00:03.7]} 50... Qd4 {[%clk 0:00:28.2]} 51. Qf3 {[%clk 0:00:03.1]} 51...
b4 {[%clk 0:00:27.9]} 52. axb4 {[%clk 0:00:03.3]} 52... axb4 {[%clk 0:00:28.1]}
53. h4 {[%clk 0:00:03.4]} 53... h5 {[%clk 0:00:27.6]} 54. Qb3 {[%clk 0:00:02.5]}
54... Qc3 {[%clk 0:00:26.6]} 55. Qa4 {[%clk 0:00:02.1]} 55... b3 {[%clk
0:00:24.3]} 56. d6 {[%clk 0:00:02.1]} 56... b2 {[%clk 0:00:20.1]} 57. d7 {[%clk
0:00:01.6]} 57... Qd2+ {[%clk 0:00:19.2]} 58. Kh3 {[%clk 0:00:01.4]} 58... b1=Q
{[%clk 0:00:19.9]} 0-1

[Event "Early-Titled-Tuesday-Blitz-February-27-2024"]
[Site "Chess.com"]
[Date "2024.02.27"]
[Round "7"]
[White "Tugrik1969"]
[Black "ricaurtelopezj1955"]
[Result "0-1"]
[WhiteElo "2370"]
[BlackElo "2180"]
[TimeControl "180+1"]
[EndTime "9:17:32 PST"]
[Termination "ricaurtelopezj1955 won on time"]

1. d4 {[%clk 0:02:50.7]} 1... d5 {[%clk 0:02:57.2]} 2. c4 {[%clk 0:02:50.6]}
2... e6 {[%clk 0:02:55.9]} 3. Nf3 {[%clk 0:02:51.1]} 3... c5 {[%clk 0:02:54]} 4.
cxd5 {[%clk 0:02:49.5]} 4... exd5 {[%clk 0:02:52.1]} 5. g3 {[%clk 0:02:50]} 5...
Nc6 {[%clk 0:02:50.3]} 6. Bg2 {[%clk 0:02:50.4]} 6... Nf6 {[%clk 0:02:48.7]} 7.
O-O {[%clk 0:02:50.2]} 7... Be7 {[%clk 0:02:47.7]} 8. dxc5 {[%clk 0:02:50.4]}
8... Bxc5 {[%clk 0:02:46]} 9. a3 {[%clk 0:02:50.8]} 9... O-O {[%clk 0:02:43.5]}
10. b4 {[%clk 0:02:49.2]} 10... Bb6 {[%clk 0:02:41.4]} 11. Nc3 {[%clk
0:02:24.3]} 11... h6 {[%clk 0:02:35.7]} 12. Bb2 {[%clk 0:02:20.6]} 12... Re8
{[%clk 0:02:32.4]} 13. Na4 {[%clk 0:02:13]} 13... Bg4 {[%clk 0:02:23.6]} 14. Rc1
{[%clk 0:02:08.3]} 14... Ne4 {[%clk 0:02:17.2]} 15. Nxb6 {[%clk 0:02:00.9]}
15... axb6 {[%clk 0:02:15.1]} 16. Nd4 {[%clk 0:01:55.1]} 16... Nxd4 {[%clk
0:02:01.5]} 17. Qxd4 {[%clk 0:01:54.7]} 17... Nf6 {[%clk 0:01:55.3]} 18. e3
{[%clk 0:01:47.7]} 18... Be2 {[%clk 0:01:52.8]} 19. Rfe1 {[%clk 0:01:46.6]}
19... Bc4 {[%clk 0:01:52]} 20. e4 {[%clk 0:01:43.2]} 20... b5 {[%clk 0:01:44.5]}
21. e5 {[%clk 0:01:15.4]} 21... Ne4 {[%clk 0:01:12]} 22. e6 {[%clk 0:01:00.9]}
22... f6 {[%clk 0:01:05.8]} 23. Bh3 {[%clk 0:00:47.6]} 23... Ng5 {[%clk
0:00:55.5]} 24. Bg4 {[%clk 0:00:37.4]} 24... Qd6 {[%clk 0:00:51.6]} 25. h4
{[%clk 0:00:26.9]} 25... Nxe6 {[%clk 0:00:48.9]} 26. Qd2 {[%clk 0:00:25.2]}
26... Nf8 {[%clk 0:00:41.1]} 27. Bh5 {[%clk 0:00:23]} 27... Re7 {[%clk
0:00:34.2]} 28. Rxe7 {[%clk 0:00:21.2]} 28... Qxe7 {[%clk 0:00:33.1]} 29. Re1
{[%clk 0:00:22.1]} 29... Qd7 {[%clk 0:00:31.3]} 30. Qd4 {[%clk 0:00:20.1]} 30...
Qf5 {[%clk 0:00:29.9]} 31. Bg4 {[%clk 0:00:19]} 31... Qc2 {[%clk 0:00:29.4]} 32.
Bf3 {[%clk 0:00:17.9]} 32... Qd3 {[%clk 0:00:27.8]} 33. Bxd5+ {[%clk 0:00:15.1]}
33... Kh8 {[%clk 0:00:24.1]} 34. Qxd3 {[%clk 0:00:13.3]} 34... Bxd3 {[%clk
0:00:23.3]} 35. Bxb7 {[%clk 0:00:13.7]} 35... Rb8 {[%clk 0:00:20]} 36. Bd5
{[%clk 0:00:14]} 36... Bc4 {[%clk 0:00:19.4]} 37. Bc6 {[%clk 0:00:12.5]} 37...
Ng6 {[%clk 0:00:17.8]} 38. f4 {[%clk 0:00:11.2]} 38... Rd8 {[%clk 0:00:17.3]}
39. Re8+ {[%clk 0:00:09.6]} 39... Rxe8 {[%clk 0:00:15.4]} 40. Bxe8 {[%clk
0:00:10.5]} 40... Ne7 {[%clk 0:00:14.7]} 41. Kf2 {[%clk 0:00:10.7]} 41... Nd5
{[%clk 0:00:13.6]} 42. Kf3 {[%clk 0:00:08.8]} 42... Kg8 {[%clk 0:00:13.2]} 43.
Bg6 {[%clk 0:00:08.2]} 43... Kf8 {[%clk 0:00:12]} 44. Ke4 {[%clk 0:00:07.1]}
44... Ke7 {[%clk 0:00:10.8]} 45. Kd4 {[%clk 0:00:07]} 45... Kd6 {[%clk
0:00:09.2]} 46. Bf5 {[%clk 0:00:06.4]} 46... Nb6 {[%clk 0:00:08.6]} 47. Be4
{[%clk 0:00:06.1]} 47... Na4 {[%clk 0:00:07.6]} 48. Bc1 {[%clk 0:00:06]} 48...
g6 {[%clk 0:00:05.3]} 49. Bxg6 {[%clk 0:00:04.4]} 49... Be6 {[%clk 0:00:02.1]}
50. Be4 {[%clk 0:00:04.4]} 50... f5 {[%clk 0:00:01.7]} 51. Bf3 {[%clk
0:00:03.7]} 51... Bd7 {[%clk 0:00:01.9]} 52. Be2 {[%clk 0:00:02.5]} 52... Nb6
{[%clk 0:00:01.7]} 0-1

[Event "Early-Titled-Tuesday-Blitz-February-27-2024"]
[Site "Chess.com"]
[Date "2024.02.27"]
[Round "7"]
[White "SaiAgni_98"]
[Black "eightbyeightchess"]
[Result "0-1"]
[WhiteElo "2551"]
[BlackElo "2425"]
[TimeControl "180+1"]
[EndTime "9:17:34 PST"]
[Termination "eightbyeightchess won on time"]

1. e4 {[%clk 0:03:00.9]} 1... e6 {[%clk 0:02:59.6]} 2. d4 {[%clk 0:03:00.4]}
2... d5 {[%clk 0:03:00.5]} 3. exd5 {[%clk 0:03:01.3]} 3... exd5 {[%clk
0:03:01.4]} 4. Bd3 {[%clk 0:03:02.2]} 4... Nf6 {[%clk 0:03:01.8]} 5. Qf3 {[%clk
0:03:01.9]} 5... Bg4 {[%clk 0:02:56.4]} 6. Qe3+ {[%clk 0:03:00.3]} 6... Be7
{[%clk 0:02:56.4]} 7. h3 {[%clk 0:02:57.7]} 7... Bh5 {[%clk 0:02:52.3]} 8. Nf3
{[%clk 0:02:46.8]} 8... O-O {[%clk 0:02:52]} 9. O-O {[%clk 0:02:46.7]} 9... c5
{[%clk 0:02:49.5]} 10. c3 {[%clk 0:02:43.1]} 10... Nc6 {[%clk 0:02:43.7]} 11.
Ne5 {[%clk 0:02:41.2]} 11... cxd4 {[%clk 0:02:40.1]} 12. cxd4 {[%clk 0:02:40.1]}
12... Re8 {[%clk 0:02:32.3]} 13. Nc3 {[%clk 0:02:32.5]} 13... Qb6 {[%clk
0:02:28]} 14. Nxc6 {[%clk 0:02:25.9]} 14... bxc6 {[%clk 0:02:27.7]} 15. Qf4
{[%clk 0:02:21]} 15... Bg6 {[%clk 0:02:17.1]} 16. Bxg6 {[%clk 0:02:15.9]} 16...
hxg6 {[%clk 0:02:17.9]} 17. b3 {[%clk 0:02:14.4]} 17... Nh5 {[%clk 0:02:17.7]}
18. Qg4 {[%clk 0:02:10.2]} 18... Bf6 {[%clk 0:01:59.2]} 19. Be3 {[%clk
0:02:01.7]} 19... Qb4 {[%clk 0:01:58.1]} 20. Na4 {[%clk 0:01:55.6]} 20... Re4
{[%clk 0:01:56.6]} 21. Qd7 {[%clk 0:01:55.9]} 21... Bxd4 {[%clk 0:01:41.1]} 22.
Bxd4 {[%clk 0:01:53.5]} 22... Rxd4 {[%clk 0:01:23]} 23. Qxc6 {[%clk 0:01:53.3]}
23... Rd8 {[%clk 0:01:23.4]} 24. Rad1 {[%clk 0:01:48.9]} 24... Nf4 {[%clk
0:01:22.8]} 25. Qc7 {[%clk 0:01:28.7]} 25... Ne6 {[%clk 0:01:22.5]} 26. Qc2
{[%clk 0:01:09.6]} 26... Rxd1 {[%clk 0:01:04.5]} 27. Rxd1 {[%clk 0:01:09.3]}
27... d4 {[%clk 0:01:05.4]} 28. Qd2 {[%clk 0:00:54.1]} 28... Qb7 {[%clk
0:00:46.8]} 29. Nb2 {[%clk 0:00:53.4]} 29... Nc5 {[%clk 0:00:18.3]} 30. Nc4
{[%clk 0:00:49.5]} 30... Ne4 {[%clk 0:00:19.2]} 31. Qf4 {[%clk 0:00:47.6]} 31...
d3 {[%clk 0:00:16.5]} 32. Kh1 {[%clk 0:00:35]} 32... f5 {[%clk 0:00:10.3]} 33.
Qe3 {[%clk 0:00:33.7]} 33... d2 {[%clk 0:00:03.2]} 34. f3 {[%clk 0:00:31.1]}
34... Rd3 {[%clk 0:00:03.1]} 35. Qg1 {[%clk 0:00:23.1]} 35... Ng3+ {[%clk
0:00:02.2]} 36. Kh2 {[%clk 0:00:23.4]} 36... Ne2 {[%clk 0:00:02.7]} 37. Qf2
{[%clk 0:00:20.4]} 37... Qc7+ {[%clk 0:00:02.8]} 38. Kh1 {[%clk 0:00:18.4]}
38... Ng3+ {[%clk 0:00:03.4]} 39. Kg1 {[%clk 0:00:18.8]} 39... f4 {[%clk
0:00:02]} 40. Rxd2 {[%clk 0:00:18.3]} 40... Rxd2 {[%clk 0:00:02.8]} 41. Qxd2
{[%clk 0:00:15.9]} 41... Qc5+ {[%clk 0:00:03.3]} 42. Qf2 {[%clk 0:00:12.3]}
42... Qf5 {[%clk 0:00:04]} 43. Nd2 {[%clk 0:00:08.3]} 43... Qc2 {[%clk
0:00:04.1]} 44. Nf1 {[%clk 0:00:07.3]} 44... Qd1 {[%clk 0:00:04.1]} 45. h4
{[%clk 0:00:06.9]} 45... Kh7 {[%clk 0:00:04.1]} 46. b4 {[%clk 0:00:06.4]} 46...
Kh6 {[%clk 0:00:04.8]} 47. a3 {[%clk 0:00:04.7]} 47... Kh5 {[%clk 0:00:05.1]}
48. Qc5+ {[%clk 0:00:04.9]} 48... Kxh4 {[%clk 0:00:05.4]} 49. Qe7+ {[%clk
0:00:05.2]} 49... g5 {[%clk 0:00:05.6]} 0-1

[Event "Early-Titled-Tuesday-Blitz-February-27-2024"]
[Site "Chess.com"]
[Date "2024.02.27"]
[Round "7"]
[White "krzyzan94"]
[Black "Pelusiansky"]
[Result "1-0"]
[WhiteElo "2795"]
[BlackElo "2597"]
[TimeControl "180+1"]
[EndTime "9:17:35 PST"]
[Termination "krzyzan94 won on time"]

1. Nf3 {[%clk 0:03:00.9]} 1... d5 {[%clk 0:02:59.2]} 2. g3 {[%clk 0:03:01]} 2...
e6 {[%clk 0:02:59.3]} 3. Bg2 {[%clk 0:03:01.4]} 3... Nf6 {[%clk 0:03:00]} 4. O-O
{[%clk 0:03:01.8]} 4... Be7 {[%clk 0:03:00.7]} 5. c4 {[%clk 0:02:59.5]} 5... O-O
{[%clk 0:03:01.1]} 6. b3 {[%clk 0:02:59.3]} 6... b6 {[%clk 0:03:00]} 7. cxd5
{[%clk 0:02:57.7]} 7... exd5 {[%clk 0:02:53.9]} 8. d4 {[%clk 0:02:56.2]} 8...
Bb7 {[%clk 0:02:51.9]} 9. Nc3 {[%clk 0:02:56.1]} 9... Nbd7 {[%clk 0:02:50.5]}
10. Bf4 {[%clk 0:02:54.8]} 10... c6 {[%clk 0:02:30.6]} 11. Rc1 {[%clk
0:02:52.4]} 11... Re8 {[%clk 0:02:28]} 12. Rc2 {[%clk 0:02:31.6]} 12... Nh5
{[%clk 0:02:14.9]} 13. Bd2 {[%clk 0:02:25.4]} 13... Bf8 {[%clk 0:02:07]} 14. Re1
{[%clk 0:02:17.8]} 14... Nhf6 {[%clk 0:02:03]} 15. Bf4 {[%clk 0:02:17.8]} 15...
Nh5 {[%clk 0:02:01.5]} 16. Bg5 {[%clk 0:02:14.3]} 16... Nhf6 {[%clk 0:01:57.3]}
17. e4 {[%clk 0:01:58.1]} 17... h6 {[%clk 0:01:41]} 18. Bxf6 {[%clk 0:01:53.6]}
18... Nxf6 {[%clk 0:01:41.4]} 19. e5 {[%clk 0:01:52.8]} 19... Nh7 {[%clk
0:01:34]} 20. Nh4 {[%clk 0:01:51.3]} 20... Bc8 {[%clk 0:01:27.2]} 21. Qd3 {[%clk
0:01:43.9]} 21... Ng5 {[%clk 0:01:19.9]} 22. Qf1 {[%clk 0:01:14.8]} 22... a5
{[%clk 0:01:12.9]} 23. f4 {[%clk 0:01:14.2]} 23... Ne6 {[%clk 0:01:10.4]} 24.
Ne2 {[%clk 0:01:13.7]} 24... Ba6 {[%clk 0:01:05.8]} 25. Nf3 {[%clk 0:01:03.3]}
25... c5 {[%clk 0:01:01.5]} 26. Qf2 {[%clk 0:00:59.5]} 26... Bd3 {[%clk
0:00:46.8]} 27. Rcc1 {[%clk 0:00:54.1]} 27... a4 {[%clk 0:00:43.6]} 28. Qe3
{[%clk 0:00:43.7]} 28... Bxe2 {[%clk 0:00:43.1]} 29. Qxe2 {[%clk 0:00:41.4]}
29... axb3 {[%clk 0:00:42.5]} 30. axb3 {[%clk 0:00:42]} 30... cxd4 {[%clk
0:00:25.6]} 31. f5 {[%clk 0:00:40.2]} 31... d3 {[%clk 0:00:24.5]} 32. Qxd3
{[%clk 0:00:39.6]} 32... Nc5 {[%clk 0:00:24.9]} 33. Qd1 {[%clk 0:00:37.7]} 33...
Ne4 {[%clk 0:00:25.3]} 34. Nd4 {[%clk 0:00:28.2]} 34... Bc5 {[%clk 0:00:23.4]}
35. e6 {[%clk 0:00:24.9]} 35... Qf6 {[%clk 0:00:22.2]} 36. Bxe4 {[%clk
0:00:11.5]} 36... Qxd4+ {[%clk 0:00:20.5]} 37. Qxd4 {[%clk 0:00:07.8]} 37...
Bxd4+ {[%clk 0:00:20.9]} 38. Kg2 {[%clk 0:00:07.4]} 38... dxe4 {[%clk
0:00:21.1]} 39. Rxe4 {[%clk 0:00:08.3]} 39... Bf6 {[%clk 0:00:20]} 40. Rc6
{[%clk 0:00:06.1]} 40... fxe6 {[%clk 0:00:20.3]} 41. fxe6 {[%clk 0:00:06.9]}
41... Rab8 {[%clk 0:00:16.7]} 42. h4 {[%clk 0:00:07.1]} 42... Rb7 {[%clk
0:00:14.7]} 43. Kh3 {[%clk 0:00:07.6]} 43... b5 {[%clk 0:00:15.1]} 44. Kg4
{[%clk 0:00:08]} 44... b4 {[%clk 0:00:14.9]} 45. Kf5 {[%clk 0:00:07.3]} 45...
Bc3 {[%clk 0:00:14.7]} 46. Kg4 {[%clk 0:00:06.4]} 46... Rbe7 {[%clk 0:00:14.9]}
47. h5 {[%clk 0:00:05.9]} 47... Kh7 {[%clk 0:00:15.4]} 48. Kh3 {[%clk
0:00:05.9]} 48... Rf8 {[%clk 0:00:15.7]} 49. Kg4 {[%clk 0:00:06.5]} 49... Rf6
{[%clk 0:00:15.7]} 50. Rb6 {[%clk 0:00:06.7]} 50... Rf1 {[%clk 0:00:14]} 51. Rc6
{[%clk 0:00:06.9]} 51... Rb1 {[%clk 0:00:10.2]} 52. Rc8 {[%clk 0:00:06.9]} 52...
Re1 {[%clk 0:00:07.6]} 53. Rxe1 {[%clk 0:00:05.1]} 53... Bxe1 {[%clk 0:00:07.9]}
54. Rc6 {[%clk 0:00:05.8]} 54... g6 {[%clk 0:00:05.2]} 55. Kf4 {[%clk
0:00:05.2]} 55... Kg7 {[%clk 0:00:05.2]} 56. g4 {[%clk 0:00:04.7]} 56... Kf6
{[%clk 0:00:05.3]} 57. hxg6 {[%clk 0:00:04.8]} 57... Rxe6 {[%clk 0:00:05.8]} 58.
g7 {[%clk 0:00:04.4]} 58... Bd2+ {[%clk 0:00:04.1]} 59. Kf3 {[%clk 0:00:04.1]}
1-0

[Event "Early-Titled-Tuesday-Blitz-February-27-2024"]
[Site "Chess.com"]
[Date "2024.02.27"]
[Round "7"]
[White "NewBornNow"]
[Black "PabloZarnicki"]
[Result "1-0"]
[WhiteElo "2871"]
[BlackElo "2639"]
[TimeControl "180+1"]
[EndTime "9:17:36 PST"]
[Termination "NewBornNow won on time"]

1. e4 {[%clk 0:03:00.9]} 1... e6 {[%clk 0:02:55.3]} 2. d4 {[%clk 0:03:00.3]}
2... d5 {[%clk 0:02:54.7]} 3. Nc3 {[%clk 0:03:00.4]} 3... Nc6 {[%clk 0:02:54.5]}
4. Nf3 {[%clk 0:02:58]} 4... Nf6 {[%clk 0:02:54.2]} 5. Bg5 {[%clk 0:02:54.3]}
5... Be7 {[%clk 0:02:53.8]} 6. Bxf6 {[%clk 0:02:50.8]} 6... Bxf6 {[%clk
0:02:53.8]} 7. e5 {[%clk 0:02:50.5]} 7... Be7 {[%clk 0:02:53.8]} 8. Bb5 {[%clk
0:02:50.3]} 8... Bd7 {[%clk 0:02:53.3]} 9. O-O {[%clk 0:02:44.4]} 9... O-O
{[%clk 0:02:53.3]} 10. Re1 {[%clk 0:02:43.2]} 10... a6 {[%clk 0:02:52.4]} 11.
Bxc6 {[%clk 0:02:42.5]} 11... Bxc6 {[%clk 0:02:52.6]} 12. Qd3 {[%clk 0:02:39.9]}
12... Bd7 {[%clk 0:02:48.8]} 13. a4 {[%clk 0:02:35.3]} 13... c5 {[%clk
0:02:48.7]} 14. Ne2 {[%clk 0:02:32.1]} 14... cxd4 {[%clk 0:02:46.5]} 15. Nexd4
{[%clk 0:02:31.4]} 15... Rc8 {[%clk 0:02:45.1]} 16. c3 {[%clk 0:02:29.8]} 16...
Qb6 {[%clk 0:02:39.2]} 17. b4 {[%clk 0:02:21.5]} 17... Rc4 {[%clk 0:02:34.9]}
18. Nd2 {[%clk 0:02:08.2]} 18... Rc7 {[%clk 0:02:34.6]} 19. a5 {[%clk
0:02:06.6]} 19... Qa7 {[%clk 0:02:34.2]} 20. Re3 {[%clk 0:01:47.5]} 20... Rfc8
{[%clk 0:02:33.8]} 21. Rh3 {[%clk 0:01:45.8]} 21... g6 {[%clk 0:02:25.8]} 22.
Ra3 {[%clk 0:01:38.7]} 22... b6 {[%clk 0:01:47.9]} 23. axb6 {[%clk 0:01:31.2]}
23... Qxb6 {[%clk 0:01:48.1]} 24. Rxa6 {[%clk 0:01:23.3]} 24... Qb8 {[%clk
0:01:39.6]} 25. Ra3 {[%clk 0:01:19.9]} 25... Ra7 {[%clk 0:01:20.8]} 26. Rxa7
{[%clk 0:01:14.8]} 26... Qxa7 {[%clk 0:01:21.7]} 27. Re3 {[%clk 0:01:13.3]}
27... Qa1+ {[%clk 0:01:17.4]} 28. Qf1 {[%clk 0:01:03.6]} 28... Qb2 {[%clk
0:01:13.6]} 29. Nb1 {[%clk 0:00:59.5]} 29... Bg5 {[%clk 0:01:05.3]} 30. Re2
{[%clk 0:00:54.8]} 30... Qa1 {[%clk 0:01:05.5]} 31. Nb3 {[%clk 0:00:36.3]} 31...
Qa7 {[%clk 0:01:04.1]} 32. Nd4 {[%clk 0:00:30.9]} 32... Bd8 {[%clk 0:01:03.5]}
33. Rd2 {[%clk 0:00:26.7]} 33... Bb6 {[%clk 0:01:03.5]} 34. Qd1 {[%clk
0:00:26.1]} 34... Ba4 {[%clk 0:00:57]} 35. Qe1 {[%clk 0:00:25.2]} 35... Kg7
{[%clk 0:00:44.9]} 36. h4 {[%clk 0:00:22.6]} 36... h5 {[%clk 0:00:45]} 37. Ra2
{[%clk 0:00:17.3]} 37... Qd7 {[%clk 0:00:38.1]} 38. Qe3 {[%clk 0:00:15.9]} 38...
Ba7 {[%clk 0:00:26.1]} 39. Nd2 {[%clk 0:00:13.8]} 39... Kg8 {[%clk 0:00:23.3]}
40. N2f3 {[%clk 0:00:13.7]} 40... Bd1 {[%clk 0:00:22.3]} 41. Qh6 {[%clk
0:00:12.5]} 41... Bxf3 {[%clk 0:00:21.1]} 42. Nxf3 {[%clk 0:00:11.8]} 42... Rxc3
{[%clk 0:00:06.3]} 43. Ng5 {[%clk 0:00:11.7]} 43... Rc1+ {[%clk 0:00:06.6]} 44.
Kh2 {[%clk 0:00:11.1]} 44... Qc7 {[%clk 0:00:03.8]} 45. Qh7+ {[%clk 0:00:09.1]}
45... Kf8 {[%clk 0:00:04.3]} 46. Qh8+ {[%clk 0:00:09.2]} 46... Ke7 {[%clk
0:00:04.9]} 47. Qf6+ {[%clk 0:00:09.2]} 47... Ke8 {[%clk 0:00:05.5]} 48. Nxe6
{[%clk 0:00:08.7]} 48... fxe6 {[%clk 0:00:04.7]} 49. Qxe6+ {[%clk 0:00:08.3]}
49... Kd8 {[%clk 0:00:05.3]} 50. Qg8+ {[%clk 0:00:08]} 50... Kd7 {[%clk
0:00:05.5]} 51. Rxa7 {[%clk 0:00:07.4]} 51... Ke7 {[%clk 0:00:05.9]} 52. Qg7+
{[%clk 0:00:07.2]} 52... Ke6 {[%clk 0:00:05.6]} 53. Rxc7 {[%clk 0:00:08.1]}
53... Rxc7 {[%clk 0:00:05.9]} 54. Qf6+ {[%clk 0:00:08.2]} 54... Kd7 {[%clk
0:00:06.1]} 55. Qd6+ {[%clk 0:00:09.1]} 55... Kc8 {[%clk 0:00:06.8]} 56. e6
{[%clk 0:00:09.4]} 56... Kb7 {[%clk 0:00:06.8]} 57. e7 {[%clk 0:00:09.5]} 57...
Rc8 {[%clk 0:00:06.7]} 58. Qxd5+ {[%clk 0:00:09.4]} 58... Kc7 {[%clk 0:00:06.8]}
59. Qc5+ {[%clk 0:00:09.3]} 59... Kd7 {[%clk 0:00:07.3]} 60. Qxc8+ {[%clk
0:00:09.8]} 1-0